Cogmind - Beta 10.1 @@@ ROGUE MODE // 2020.09.29 @ 11:47:20 Player: Thyrdor Result: Destroyed by as-97781 with Assembled Maul Performance ------------- Evolutions (0) 0 Regions Visited (2) 400 Robots Destroyed (28) 140 Value Destroyed (546) 546 Prototype IDs (2) 40 Alien Tech Used (0) 0 Bonus (0) 0 TOTAL SCORE: 1126 Bonus ------- None Cogmind --------- Core Integrity 0/250 Matter 300/300 Energy 99/100 System Corruption 4% Temperature Cool (112) Movement Treading (160) Location -10/Mines Parts ------- > --- POWER (1) -------- (None) > --- PROPULSION (2) --- Light Treads > --- UTILITY (2) ------ Small Storage Unit Small Storage Unit > --- WEAPON (2) ------- Particle Gun > --- INVENTORY (8) ---- Light Assault Rifle Grenade Launcher Peak State ------------ > --- POWER ------------ Light Ion Engine > --- PROPULSION ------- Light Treads Light Treads > --- UTILITY ---------- Small Storage Unit Hacking Suite > --- WEAPON ----------- Particle Gun Light Assault Rifle > --- INVENTORY -------- Small Storage Unit Light Assault Rifle Grenade Launcher [Rating: 10] Favorites ----------- Power Light Ion Engine Engine Light Ion Engine Propulsion Light Treads Treads Light Treads Utility Small Storage Unit Storage Small Storage Unit Hackware Hacking Suite Weapon EM Pulse Gun Energy Gun EM Pulse Gun Ballistic Gun Light Assault Rifle Build | -11 -10 -10 ------- Run | Scr Mat Min Slots Evolved . | . . . Power . | . . . Propulsion . | . . . Utility . | . . . Weapon . | . . . Parts Attached 13 | 6 4 3 Power 3 | 1 1 1 Engine 3 | 1 1 1 Core . | . . . Reactor . | . . . Propulsion 2 | 2 . . Treads 2 | 2 . . Leg . | . . . Wheel . | . . . Hover . | . . . Flight . | . . . Utility 4 | 1 2 1 Device . | . . . Storage 3 | 1 1 1 Processor . | . . . Hackware 1 | . 1 . Protection . | . . . Artifact . | . . . Weapon 4 | 2 1 1 Energy Gun 3 | 2 . 1 Energy Cannon . | . . . Ballistic Gun 1 | . 1 . Ballistic Cannon . | . . . Launcher . | . . . Special Weapon . | . . . Impact Weapon . | . . . Slashing Weapon . | . . . Piercing Weapon . | . . . Special Melee Weapon . | . . . Unidentified Prototypes . | . . . Parts Lost 8 | . 2 6 Power 3 | . 1 2 Propulsion 1 | . . 1 Utility 1 | . . 1 Weapon 3 | . 1 2 Highest Loss Streak 3 | . 2 3 Average Slot Usage (%) 93 | . 90 99 Engine 11 | . 9 13 Treads 28 | . 28 28 Storage 19 | . 18 21 Hackware 5 | . 5 6 Energy Gun 15 | . 16 14 Ballistic Gun 11 | . 10 14 Naked Turns . | . . . Heaviest Build 16 | 11 16 15 Greatest Support 40 | 40 40 40 Greatest Overweight (x) . | . . . Average Overweight (x) . | . . . Largest Inventory Capacity 8 | 6 8 8 Average Capacity 6 | 4 6 7 Most Carried 4 | 3 4 4 Average Carried 2 | . 2 2 Final Capacity 8 | 6 6 8 Final Carried 4 | . 4 2 Class Distribution -------------------- 73% | Mutant 26% | Scavenger-Mutant Dominant Class ---------------- Mutant | -10/Materials Scavenger-Mutant | -10/Mines Resources | -11 -10 -10 ----------- Run | Scr Mat Min Matter Collected 372 | 220 115 37 Remotely . | . . . Salvage Created 1102 | . 837 265 Parts 69 | . 46 23 Haulers Intercepted 2 | . 2 . Recyclers Shooed 2 | . 2 . Parts Field Recycled . | . . . Retrieved Matter . | . . . Parts Self-Destructed . | . . . Prevented . | . . . Kills | -11 -10 -10 ------- Run | Scr Mat Min Combat Hostiles Destroyed 17 | . 11 6 Guns 17 | . 11 6 Classes Destroyed 10 | . 7 3 Worker 1 | . 1 . Builder 1 | . . 1 Tunneler 1 | . . 1 Hauler 2 | . 2 . Recycler 3 | . 2 1 Operator 1 | . 1 . Watcher 2 | . 2 . Swarmer 5 | . 2 3 Grunt 11 | . 9 2 Assembled 1 | . . 1 Best Kill Streak 5 | . 5 3 Combat Bots Only 3 | . 2 3 Max Kills in Single Turn 2 | . 1 2 Gunslinging . | . . . Exploded . | . . . Melee . | . . . Uniques/NPCs Destroyed . | . . . Combat | -11 -10 -10 -------- Run | Scr Mat Min Damage Taken 934 | . 384 550 Core 261 | . 60 201 Absorbed by Shields . | . . . Core Remaining (%) 100 | 100 . . Volleys Fired 63 | . 45 18 Largest 2 | . 2 2 Hottest 85 | . 80 85 Shots Fired 125 | . 89 36 Gun 125 | . 89 36 Cannon . | . . . Launcher . | . . . Special . | . . . Kinetic 53 | . 35 18 Thermal 15 | . . 15 Explosive . | . . . Electromagnetic 57 | . 54 3 Robot Hit Streak 11 | . 10 11 Robot Miss Streak 4 | . 4 2 Penetration Max . | . . . Secondary Targets 5 | . 4 1 Max Gunslinging Chain 1 | . 1 1 Shots Hit Robots 75 | . 53 22 Core Hits 43 | . 30 13 Critical Hits . | . . . Critical Kills . | . . . Critical Parts Destroyed . | . . . Melee Attacks . | . . . Impact . | . . . Slashing . | . . . Piercing . | . . . Sneak Attacks . | . . . Combat Hostiles . | . . . Follow-up Attacks . | . . . Damage Inflicted 958 | . 710 248 Guns 886 | . 638 248 Cannons . | . . . Explosions 72 | . 72 . Melee . | . . . Ramming . | . . . Kinetic 199 | . 143 56 Thermal 252 | . 72 180 Explosive . | . . . Electromagnetic 507 | . 495 12 Impact . | . . . Slashing . | . . . Piercing . | . . . Highest Corruption 4 | . . 4 Average Corruption 4 | . . 4 Corruption Purged . | . . . Overload Shots . | . . . Overflow Damage . | . . . Projectiles . | . . . Explosions . | . . . Melee . | . . . Knockbacks . | . . . Impact . | . . . Kinetic . | . . . Secondary . | . . . Self-Inflicted Damage 37 | . 37 . Shots 1 | . 1 . Rammed . | . . . Targets Rammed . | . . . Kicked . | . . . Crushed . | . . . Highest Temperature 184 | . 133 184 Average Temperature 43 | . 38 54 Received Heat Transfer 262 | . 162 100 Siege Activations . | . . . Robots Corrupted . | . . . Combat Hostiles . | . . . Parts Fried 1 | . 1 . Impact Corruptions . | . . . Robots Melted . | . . . Combat Hostiles . | . . . Parts Melted . | . . . Heat Transferred 544 | . 100 444 Parts Sabotaged . | . . . Parts Stolen . | . . . Parts Stripped . | . . . Power Chain Reactions 2 | . 2 . Missiles Intercepted . | . . . Alert | -11 -10 -10 ------- Run | Scr Mat Min Peak Influence 215 | . 215 129 Initial 23 | . . 23 Average 73 | . 86 62 Maximum Alert Level 1 | . 1 . Low Security (%) 92 | 100 87 100 Level 1 7 | . 12 . Level 2 . | . . . Level 3 . | . . . Level 4 . | . . . Level 5 . | . . . High Security . | . . . Max Security . | . . . Squads Dispatched 3 | . 2 1 Investigation 3 | . 2 1 Extermination . | . . . Reinforcement . | . . . Assault . | . . . Garrison . | . . . Intercept . | . . . Construction Impeded . | . . . Haulers Reinforced . | . . . Stealth | -11 -10 -10 --------- Run | Scr Mat Min Distress Signals . | . . . Communications Jammed . | . . . Distress Signals . | . . . Times Spotted 36 | . 17 19 Peak Tracking Total 13 | . 3 13 Tactical Retreats . | . . . Traps | -11 -10 -10 ------- Run | Scr Mat Min Traps Triggered 2 | . 2 . Indirectly . | . . . Trap Hack Attempts . | . . . Triggered . | . . . Disarmed . | . . . Reprogrammed . | . . . Reused . | . . . Traps Extracted . | . . . Installed . | . . . Triggered . | . . . Machines | -11 -10 -10 ---------- Run | Scr Mat Min Machines Disabled . | . . . Max in Single Turn . | . . . Machines Sabotaged . | . . . Garrisons Compromised . | . . . Overloaded Fab Kills . | . . . Fab Network Shutdowns . | . . . Hacking | -11 -10 -10 --------- Run | Scr Mat Min Machines Accessed 7 | . 5 2 Terminals 6 | . 5 1 Fabricators . | . . . Repair Stations . | . . . Recycling Units . | . . . Scanalyzers . | . . . Garrison Access . | . . . Total Hacks 25 | . 21 4 Successful 19 | . 16 3 Failed 6 | . 5 1 Catastrophic 1 | . 1 . Database Lockouts . | . . . Manual 3 | . 3 . Terminals 24 | . 21 3 Fabricators . | . . . Repair Stations . | . . . Recycling Units . | . . . Scanalyzers . | . . . Garrison Access . | . . . Terminal Hacks 19 | . 16 3 Record 5 | . 4 1 Prototype ID Bank 1 | . 1 . Open Door 1 | . . 1 Branch Access Points 1 | . 1 . Alert Level 1 | . 1 . Unreport Threat 1 | . 1 . Locate Traps 3 | . 3 . Surveillance Status 1 | . 1 . Transport Status 1 | . 1 . Investigation Status 1 | . 1 . Recall Investigation 1 | . . 1 Hauler Manifests 1 | . 1 . Zone Layout 1 | . 1 . Fabricator Hacks . | . . . Repair Station Hacks . | . . . Recycling Unit Hacks . | . . . Scanalyzer . | . . . Garrison Access Hacks . | . . . Unauthorized Hacks . | . . . Terminals . | . . . Fabricators . | . . . Repair Stations . | . . . Recycling Units . | . . . Scanalyzers . | . . . Garrison Access . | . . . Data Cores Recovered 1 | . 1 . Used . | . . . Hacking Detections 5 | . 4 1 Full Trace Events 1 | . 1 . Feedback Events . | . . . Feedback Blocked . | . . . Robot Schematics Acquired . | . . . Robots Built . | . . . Matter . | . . . Time . | . . . Total Robot Build Rating . | . . . Part Schematics Acquired . | . . . Parts Built . | . . . Matter . | . . . Time . | . . . Total Part Build Rating . | . . . Parts Repaired . | . . . Time . | . . . Parts Recycled . | . . . Recycled Matter . | . . . Retrieved Matter . | . . . Retrieved Components . | . . . Parts Scanalyzed . | . . . Part Schematics Acquired . | . . . Parts Damaged . | . . . Bothacking | -11 -10 -10 ------------ Run | Scr Mat Min Used RIF Installer . | . . . Robots Hacked . | . . . Non-combat . | . . . Combat . | . . . Robot Hacks Applied . | . . . Relay Couplers Released . | . . . Robots Rewired . | . . . Allies Hacked . | . . . Hacks Repelled . | . . . Allies | -11 -10 -10 -------- Run | Scr Mat Min Total Allies . | . . . Largest Group . | . . . Highest-Rated Group . | . . . Highest-Rated Ally . | . . . Total Orders . | . . . Ally Attacks . | . . . Total Damage . | . . . Kills . | . . . Allies Corrupted . | . . . Allies Melted . | . . . Intel | -11 -10 -10 ------- Run | Scr Mat Min Robot Analysis Total . | . . . Derelict Logs Recovered 1 | . . 1 Drone Launches . | . . . Drone Recoveries . | . . . Exploration | -11 -10 -10 ------------- Run | Scr Mat Min Turns Passed 1476 | 80 881 515 Spaces Moved 806 | 53 465 288 Core 14 | 14 . . Treads 792 | 39 465 288 Legs . | . . . Wheels . | . . . Hover . | . . . Flight . | . . . Fastest Speed 50 | 50 160 160 Average Speed 158 | 130 160 160 Slowest Speed 160 | 160 160 160 Overloaded Moves . | . . . Propulsion Burnouts . | . . . Robots Hopped . | . . . Cave-ins Triggered . | . . . Exploration Rate (%) 45 | 5 58 73 Regions Visited 2 Branch Regions 1 Pre-discovered Areas . | . . . Known Exits Taken 1 | . 1 . Unknown Exits Taken 1 | 1 . . Scrap Searched . | . . . Spaces Dug . | . . . Terrain Destroyed 6 | . 6 . Melee . | . . . Projectile . | . . . AOE 6 | . 6 . Terrain Rammed . | . . . Walls Destroyed . | . . . Machines Disabled . | . . . Actions | -11 -10 -10 --------- Run | Scr Mat Min Total 894 | 64 520 310 Wait . | . . . Move 804 | 52 464 288 Hop . | . . . Pick Up 14 | 6 7 1 Fast Attach . | . . . Attach 12 | 6 3 3 Detach . | . . . Swap 1 | . 1 . Drop . | . . . Fire 63 | . 45 18 Melee . | . . . Ram . | . . . Kick . | . . . Crush . | . . . Escape Stasis . | . . . Rewire . | . . . Trap . | . . . Miscellaneous . | . . . Route ------- -11/Scrapyard -10/Materials (discovered 3 exits: [*Mat] / *Min x2) -10/Mines (discovered 2 exits: [*Mat x2]) History --------- Turn | Location | Event 4 | -11/Scrapyard | Discovered new exit (range 15) 81 | -11/Scrapyard | Entered Materials 137 | -10/Materials | Discovered new exit (range 5) 211 | -10/Materials | Discovered new exit (range 14) 313 | -10/Materials | Build established: Mutant 555 | -10/Materials | Discovered new exit (range 16) 921 | -10/Materials | Identified exit to Mines 962 | -10/Materials | Entered Mines 1099 | -10/Mines | Discovered new exit (range 15) 1107 | -10/Mines | Met a Derelict shopkeep closing up shop 1117 | -10/Mines | Core integrity fell below 50% 1203 | -10/Mines | Discovered new exit (range 9) 1214 | -10/Mines | Learned 2 Materials zone layouts 1375 | -10/Mines | Build established: Scavenger-Mutant 1462 | -10/Mines | Assembled infested the area 1477 | -10/Mines | Core integrity fell below 20% 1477 | -10/Mines | Destroyed by as-97781 with Assembled Maul Last Messages --------------- can be put in place. >>Recall(Investigation) Establishing remote squad link... No tasked investigation squads found. 01281_ T-07 Excavator destroyed. 01283_ K-01 Serf collects debris. 01284_ Acquired 1 matter. 01287_ K-01 Serf collects debris. 01450_ U-05 Engineer destroyed. 01451_ K-01 Serf collects debris. 01453_ Acquired 1 matter. 01458_ K-01 Serf collects debris. 01462_ ALERT: Infestation in the mines, dispatching Demolisher response squad. 01472_ as-59874 destroyed. 01472_ Switching to secondary target: as-96245. 01473_ Lgt. Ion Engine destroyed. 01473_ System corrupted by crushing effect (+4). 01474_ Lgt. Treads destroyed. 01475_ Lgt. Assault Rifle destroyed. Map ----- +----------------------------------------------------+ | | | | | | | | | | | | | | | | | | | ?????????????????????????????????????????????? | | ?????????????????????????????????????????????? | | ?????????????????????????????????????????????? | | ????????????????????????#????????????????????? | | ???????????????????????? ????????????????????? | | ???????????????????????? ????????????????????? | | ???????????????????????? ????????????????????? | | ???????????????????????? ????????????????????? | | ???????????????????????? ##??????????????????? | | ???###?????????????????? ##?????????????????? | | ?## #?????????????????? ##????????????????? | | ## #?????????????????? ##???????????????? | | # #???????????????????# a ????????????????? | | #???????????????????# aa#????????????????? | | ####??????????????????##aa ### #????????????? | | ##????????????????###?## aa a #????????????? | | #????????????????## ## @a #????????????????? | | ###??????????????# a #????????????????? | | #??????????????# ##????????????????? | | # #??????????????## #?????????????????? | | # #?????##????????# ##?????????????????? | | # #??#### ????????# ##??????????????????? | | # #?## ????????## ##???????????????????? | | # #?# ????????# #????????????????????? | | # #?# ????????##!* #????????????????????? | | # #??# #???????##%=##????????????????????? | | # #???# ##???###=!##?????????????????????? | | # #????# ##?## #??????????????????????? | | # #?????# ### ##??????????????????????? | | # #??????# ##??????????????????????? | | # #??????## ## ##????????????????? | | # #???????## #????????????????? | | # #????????# #????????????????? | | #??####### ## #????????????????? | | ###??# #### ##????????????????? | | #????# ##??#######?????????????????? | | #????# #### ####???????????????????????? | | #????# ????## ##????##????????????????? | | #???????????## ##??## ##??????????????? | | #????????????## ##?# #??????????????? | | #?????????????## #?# #??????????????? | +----------------------------------------------------+ Best States ------------- Heat Dissipation 25 Energy Generation 10 Energy Capacity 250 Matter Stores 300 Matter Capacity 300 Sight Range 16 Terrain Scan Density 10 Evasion (%) 40 Recoil Reduction 2 Offensive Hacking 10 Item Schematics ----------------- None Robot Schematics ------------------ None Fabricated ------------ Nothing Alien Tech Used ----------------- None Achievements -------------- None Challenges ------------ None Game ------ Seed MachineBombardmentCorpse Manual? 0 Play Time 00:18:50 Cumulative 9.5 hours Start 2020.09.29 @ 11:30:59 End 2020.09.29 @ 11:47:20 Sessions 1 Manual Loads 0 Difficulty Rogue Special Mode None Game No. 25 Rogue 25 Adventurer 0 Explorer 0 Win Type - Total 0 Types 0/0/0/0/0/0/0/0/0 Lore% 4 Gallery% 16 Achievement% 11 Wizard Run 0 Options --------- ASCII 0 Keyboard 0 Movement Mouse Keybinds 0 Fullscreen 1 Font 18/SmallcapsGlow Map View 76x50 Tactical HUD 1 Map Filters NONE Filters NONE Steam 1 RUN: bd7420ed-7fcf-4c6d-af37-cb7f024aa37a